fUSD/lending_fUSD_20260515
["ID","MTS","AMOUNT","RATE_DAILY","PERIOD"]
[422313517,1778814650000,-300.0,0.00023827,2]
[422313532,1778814650000,-683.0,0.00024,2]
[422313520,1778814650000,-200.0,0.0002399,2]
[422313528,1778814650000,-3600.0,0.00024,2]
[422313531,1778814650000,-1856.0,0.00024,2]
[422313540,1778814650000,-452.0,0.00024,2]
[422313546,1778814650000,-225.18697532,0.00024259,2]
[422313537,1778814650000,-377.0,0.00024,2]
[422313547,1778814650000,-2463.6,0.00024324,2]
[422313545,1778814650000,-200.0,0.00024253,2]
[422313549,1778814650000,-500.0,0.00024503,2]
[422313548,1778814650000,-1361.09,0.000244,7]
[422313538,1778814650000,-272.0,0.00024,2]
[422313539,1778814650000,-866.0,0.00024,2]
[422313536,1778814650000,-3986.0,0.00024,2]
[422313541,1778814650000,-287.0,0.00024,2]
[422313542,1778814650000,-152.0,0.00024161,3]
[422313543,1778814650000,-2600.05414747,0.0002421,2]
[422313519,1778814650000,-188.12728752,0.00023973,13]
[422313535,1778814650000,-3085.0,0.00024,2]
[422313516,1778814650000,-11024.42,0.00023827,2]
[422313494,1778814650000,-272.0,0.00023,2]
[422313518,1778814650000,-300.0,0.00023827,2]
[422313491,1778814650000,-200.0,0.00023,30]
[422313490,1778814650000,-3986.0,0.00023,2]
[422313499,1778814650000,-363.0,0.00023,30]
[422313500,1778814650000,-468.0,0.00023,2]
[422313496,1778814650000,-200.0,0.00023,30]
[422313498,1778814650000,-287.0,0.00023,2]
[422313493,1778814650000,-200.0,0.00023,30]
[422313492,1778814650000,-377.0,0.00023,2]
[422313497,1778814650000,-452.0,0.00023,2]
[422313495,1778814650000,-866.0,0.00023,2]
[422313503,1778814650000,-300.0,0.00023074,2]
[422313504,1778814650000,-164.16086875,0.00023091,2]
[422313501,1778814650000,-300.0,0.00023074,2]
[422313505,1778814650000,-500.0,0.00023097,2]
[422313502,1778814650000,-690.56488704,0.00023074,2]
[422313506,1778814650000,-163.03964696,0.000232,2]
[422313507,1778814650000,-650.52758817,0.00023288,2]
[422313512,1778814650000,-1900.0,0.00023664,2]
[422313511,1778814650000,-280.03725112,0.00023442,2]
[422313544,1778814650000,-500.0,0.00024253,2]
[422313510,1778814650000,-260.4103811,0.00023442,2]
[422313509,1778814650000,-1108.79636044,0.00023442,2]
[422313514,1778814650000,-150.0,0.00023671,2]
[422313513,1778814650000,-1900.0,0.00023664,2]
[422313523,1778814650000,-290.39862941,0.0002399,2]
[422313515,1778814650000,-500.0,0.00023789,2]
[422313522,1778814650000,-270.0455652,0.0002399,2]
[422313521,1778814650000,-1149.82182577,0.0002399,2]
[422313550,1778814650000,-200.0,0.00024538,2]
[422313508,1778814650000,-200.0,0.00023442,2]
[422313552,1778814650000,-280.03725112,0.00024538,2]
[422313587,1778814650000,-3631.0,0.00024945,2]
[422313577,1778814650000,-174.08,0.00024945,2]
[422313581,1778814650000,-150.08,0.00024945,2]
[422313585,1778814650000,-1270.0,0.00024945,2]
[422313588,1778814650000,-933.445,0.00024945,2]
[422313591,1778814650000,-1128.44306839,0.00025,2]
[422313590,1778814650000,-300.0,0.00024999,10]
[422313594,1778814650000,-1808.1365653,0.00025,2]
[422313592,1778814650000,-210.19393194,0.00025,2]
[422313593,1778814650000,-493.05734925,0.00025,60]
[422313596,1778814650000,-618.72107897,0.00025,2]
[422313595,1778814650000,-540.0,0.00025,2]
[422313597,1778814650000,-3082.86914386,0.00025,2]
[422313598,1778814650000,-105610.57396544,0.00025,7]
[422313600,1778814650000,-5990.74911722,0.00025,2]
[422313601,1778814650000,-1000.0,0.00025,7]
[422313605,1778814650000,-1860.44760533,0.00025,2]
[422313604,1778814650000,-208.38824723,0.00025,7]
[422313603,1778814650000,-208.38824723,0.00025,30]
[422313602,1778814650000,-214.997284,0.00025,7]
[422313606,1778814650000,-6445.64661898,0.00025,2]
[422313607,1778814650000,-192.64931208,0.00025,60]
[422313608,1778814650000,-294.87139603,0.00025,60]
[422313610,1778814650000,-274.78813989,0.00025,2]
[422313609,1778814650000,-686.62894597,0.00025,2]
[422313611,1778814650000,-506.04338741,0.00025,2]
[422313553,1778814650000,-301.1433787,0.00024538,2]
[422313579,1778814650000,-150.088,0.00024945,2]
[422313580,1778814650000,-150.0,0.00024945,2]
[422313599,1778814650000,-2127.31504137,0.00025,2]
[422313589,1778814650000,-152.0,0.00024979,4]
[422313583,1778814650000,-3542.0,0.00024945,2]
[422313560,1778814650000,-1254.05,0.0002456,2]
[422313554,1778814650000,-1254.05,0.00024556,2]
[422313558,1778814650000,-1254.05,0.00024558,2]
[422313562,1778814650000,-164.16086875,0.0002465,2]
[422313551,1778814650000,-1192.36523333,0.00024538,2]
[422313555,1778814650000,-1254.05,0.00024556,2]
[422313559,1778814650000,-1254.04,0.0002456,2]
[422313557,1778814650000,-1254.05,0.00024558,2]
[422313561,1778814650000,-1254.05,0.0002456,2]
[422313564,1778814650000,-1000.0,0.00024658,2]
[422313572,1778814650000,-275.0,0.00024945,2]
[422313575,1778814650000,-200.0,0.00024945,2]
[422313573,1778814650000,-219.0,0.00024945,2]
[422313556,1778814650000,-1254.05,0.00024558,2]
[422313582,1778814650000,-1354.0,0.00024945,2]
[422313584,1778814650000,-625.0,0.00024945,2]
[422313586,1778814650000,-150.159,0.00024945,2]
[422313578,1778814650000,-150.0,0.00024945,2]
[422313574,1778814650000,-200.0,0.00024945,2]
[422313569,1778814650000,-500.0,0.00024932,2]
[422313571,1778814650000,-308.45878197,0.00024944,10]
[422313576,1778814650000,-150.0,0.00024945,2]
[422313566,1778814650000,-650.52758817,0.00024658,2]
[422313567,1778814650000,-500.0,0.00024932,2]
[422313570,1778814650000,-300.0,0.00024944,10]
[422313568,1778814650000,-500.0,0.00024932,2]
[422313563,1778814650000,-2392.0,0.00024658,2]
[422313565,1778814650000,-857.44,0.00024658,2]
[422313659,1778814651000,-151.0,0.00026,2]
[422313660,1778814651000,-238.649778,0.00026,2]
[422313653,1778814651000,-550.0,0.00026,2]
[422313652,1778814651000,-219.25916964,0.00026,2]
[422313649,1778814651000,-608.59437514,0.0002599,2]
[422313642,1778814651000,-152.0,0.00025797,5]
[422313647,1778814651000,-528.92,0.00025878,4]
[422313648,1778814651000,-40394.28604079,0.0002589,5]
[422313646,1778814651000,-500.0,0.00025878,4]
[422313645,1778814651000,-500.0,0.00025878,4]
[422313644,1778814651000,-6445.64661898,0.000258,2]
[422313654,1778814651000,-6445.64661898,0.00026,2]
[422313651,1778814651000,-4581.1498201,0.00026,2]
[422313657,1778814651000,-151.0,0.00026,2]
[422313664,1778814651000,-151.0,0.00026,2]
[422313656,1778814651000,-151.0,0.00026,2]
[422313650,1778814651000,-500.0,0.00025995,2]
[422313655,1778814651000,-6620.0,0.00026,7]
[422313661,1778814651000,-238.649778,0.00026,2]
[422313662,1778814651000,-238.649778,0.00026,2]
[422313672,1778814651000,-154.340148,0.00026,2]
[422313667,1778814651000,-151.0,0.00026,2]
[422313671,1778814651000,-206.129269,0.00026,2]
[422313668,1778814651000,-151.0,0.00026,2]
[422313670,1778814651000,-151.0,0.00026,2]
[422313665,1778814651000,-151.0,0.00026,2]
[422313663,1778814651000,-238.649778,0.00026,2]
[422313666,1778814651000,-152.295406,0.00026,2]
[422313658,1778814651000,-151.0,0.00026,2]
[422313643,1778814651000,-214.997284,0.000258,7]
[422313612,1778814651000,-3104.70135963,0.00025,2]
[422313640,1778814651000,-657.58,0.00025735,2]
[422313669,1778814651000,-2327.0,0.00026,2]
[422313613,1778814651000,-4001.05895688,0.00025,2]
[422313616,1778814651000,-274.61900104,0.00025,2]
[422313615,1778814651000,-388.00224942,0.00025,2]
[422313624,1778814651000,-6445.64661898,0.000253,2]
[422313614,1778814651000,-550.10841759,0.00025,2]
[422313625,1778814651000,-371.22,0.00025397,2]
[422313620,1778814651000,-290.39862941,0.00025086,2]
[422313617,1778814651000,-873.1757212,0.00025,2]
[422313621,1778814651000,-195.89,0.00025175,7]
[422313622,1778814651000,-500.0,0.00025195,2]
[422313618,1778814651000,-471.79799207,0.00025,2]
[422313623,1778814651000,-500.0,0.00025238,2]
[422313641,1778814651000,-11024.42,0.00025741,7]
[422313619,1778814651000,-297.40972659,0.00025,2]
[422313637,1778814651000,-1000.0,0.000257,2]
[422313636,1778814651000,-308.0,0.000257,2]
[422313630,1778814651000,-233.51889341,0.00025628,2]
[422313628,1778814651000,-178.10814247,0.00025523,2]
[422313629,1778814651000,-150.0,0.00025565,2]
[422313627,1778814651000,-6445.64661898,0.000255,2]
[422313634,1778814651000,-550.0,0.00025665,2]
[422313631,1778814651000,-644.79446246,0.00025631,2]
[422313632,1778814651000,-721.12765535,0.00025631,2]
[422313633,1778814651000,-301.1433787,0.00025634,2]
[422313635,1778814651000,-6620.0,0.000257,7]
[422313639,1778814651000,-200.0,0.000257,2]
[422313638,1778814651000,-314.0,0.000257,2]
[422313626,1778814651000,-254.81376594,0.00025497,3]
[422313674,1778814651000,-206.129269,0.00026,2]
[422313678,1778814651000,-1521.08,0.00026027,2]
[422313675,1778814651000,-206.129269,0.00026,2]
[422313706,1778814651000,-231.750592,0.00026055,2]
[422313709,1778814651000,-1521.94,0.00026055,7]
[422313712,1778814651000,-820.26672,0.00026084,2]
[422313708,1778814651000,-642.08,0.00026055,7]
[422313714,1778814651000,-820.26672,0.00026084,2]
[422313725,1778814651000,-557.75,0.00026084,30]
[422313724,1778814651000,-1307.46,0.00026084,2]
[422313726,1778814651000,-642.08,0.00026084,2]
[422313713,1778814651000,-820.26672,0.00026084,2]
[422313721,1778814651000,-634.203246,0.00026084,2]
[422313719,1778814651000,-634.203246,0.00026084,2]
[422313717,1778814651000,-151.0,0.00026084,2]
[422313722,1778814651000,-641.99,0.00026084,2]
[422313702,1778814651000,-151.0,0.00026055,2]
[422313718,1778814651000,-634.203246,0.00026084,2]
[422313715,1778814651000,-151.0,0.00026084,2]
[422313723,1778814651000,-1521.08,0.00026084,2]
[422313720,1778814651000,-634.203246,0.00026084,2]
[422313676,1778814651000,-650.52758817,0.00026027,2]
[422313730,1778814651000,-641.99,0.00026113,2]
[422313731,1778814651000,-1521.08,0.00026113,2]
[422313729,1778814651000,-151.0,0.0002611,7]
[422313732,1778814651000,-1307.46,0.00026113,2]
[422313735,1778814651000,-1521.94,0.00026113,2]
[422313728,1778814651000,-1307.44,0.00026084,2]
[422313734,1778814651000,-642.08,0.00026113,2]
[422313733,1778814651000,-557.75,0.00026113,2]
[422313736,1778814651000,-1307.44,0.00026113,2]
[422313716,1778814651000,-820.26672,0.00026084,2]
[422313707,1778814651000,-441.393341,0.00026055,2]
[422313727,1778814651000,-1521.94,0.00026084,2]
[422313711,1778814651000,-151.0,0.00026084,2]
[422313710,1778814651000,-1307.44,0.00026055,7]
[422313673,1778814651000,-206.129269,0.00026,2]
[422313684,1778814651000,-188.637163,0.00026055,2]
[422313681,1778814651000,-642.08,0.00026027,2]
[422313682,1778814651000,-1521.94,0.00026027,2]
[422313685,1778814651000,-188.637163,0.00026055,2]
[422313677,1778814651000,-641.99,0.00026027,2]
[422313679,1778814651000,-1307.46,0.00026027,2]
[422313683,1778814651000,-1307.44,0.00026027,2]
[422313687,1778814651000,-188.637163,0.00026055,2]
[422313695,1778814651000,-1022.386195,0.00026055,2]
[422313696,1778814651000,-1022.386195,0.00026055,2]
[422313699,1778814651000,-557.75,0.00026055,7]
[422313686,1778814651000,-188.637163,0.00026055,2]
[422313680,1778814651000,-557.75,0.00026027,2]
[422313697,1778814651000,-1022.386195,0.00026055,2]
[422313705,1778814651000,-441.393341,0.00026055,2]
[422313703,1778814651000,-441.393341,0.00026055,2]
[422313698,1778814651000,-1022.386195,0.00026055,2]
[422313704,1778814651000,-151.0,0.00026055,2]
[422313700,1778814651000,-151.0,0.00026055,2]
[422313693,1778814651000,-726.499866,0.00026055,2]
[422313701,1778814651000,-441.393341,0.00026055,2]
[422313691,1778814651000,-726.499866,0.00026055,2]
[422313690,1778814651000,-1521.08,0.00026055,7]
[422313694,1778814651000,-1307.46,0.00026055,7]
[422313692,1778814651000,-726.499866,0.00026055,2]
[422313689,1778814651000,-726.499866,0.00026055,2]
[422313688,1778814651000,-641.99,0.00026055,7]
[422313761,1778814652000,-642.08,0.000262,2]
[422313775,1778814652000,-557.75,0.00026257,30]
[422313764,1778814652000,-151.0,0.00026229,2]
[422313763,1778814652000,-1307.44,0.000262,2]
[422313774,1778814652000,-1307.46,0.00026257,2]
[422313766,1778814652000,-1521.08,0.00026229,7]
[422313768,1778814652000,-557.75,0.00026229,7]
[422313760,1778814652000,-557.75,0.000262,2]
[422313769,1778814652000,-642.08,0.00026229,7]
[422313772,1778814652000,-641.99,0.00026257,2]
[422313765,1778814652000,-641.99,0.00026229,7]
[422313770,1778814652000,-1521.94,0.00026229,7]
[422313773,1778814652000,-1521.08,0.00026257,2]
[422313771,1778814652000,-1307.44,0.00026229,7]
[422313777,1778814652000,-1521.94,0.00026257,2]
[422313778,1778814652000,-1307.44,0.00026257,2]
[422313762,1778814652000,-1521.94,0.000262,2]
[422313779,1778814652000,-557.77,0.00026286,2]
[422313767,1778814652000,-1307.46,0.00026229,7]
[422313757,1778814652000,-641.99,0.000262,2]
[422313743,1778814652000,-1521.94,0.00026142,7]
[422313754,1778814652000,-1521.94,0.00026171,7]
[422313781,1778814652000,-1521.08,0.00026286,2]
[422313739,1778814652000,-1521.08,0.00026142,7]
[422313738,1778814652000,-641.99,0.00026142,7]
[422313737,1778814652000,-257.13677286,0.00026123,2]
[422313741,1778814652000,-557.75,0.00026142,7]
[422313742,1778814652000,-642.08,0.00026142,7]
[422313740,1778814652000,-1307.46,0.00026142,7]
[422313746,1778814652000,-153.875587,0.00026147,2]
[422313748,1778814652000,-151.0,0.00026147,2]
[422313750,1778814652000,-1521.08,0.00026171,7]
[422313744,1778814652000,-1307.44,0.00026142,7]
[422313749,1778814652000,-641.99,0.00026171,7]
[422313747,1778814652000,-151.0,0.00026147,2]
[422313751,1778814652000,-1307.46,0.00026171,7]
[422313756,1778814652000,-1361.09,0.000262,7]
[422313758,1778814652000,-1521.08,0.000262,2]
[422313759,1778814652000,-1307.46,0.000262,2]
[422313752,1778814652000,-557.75,0.00026171,30]
[422313755,1778814652000,-1307.44,0.00026171,7]
[422313753,1778814652000,-642.08,0.00026171,7]
[422313776,1778814652000,-642.08,0.00026257,2]
[422313745,1778814652000,-151.0,0.00026147,2]
[422313783,1778814652000,-557.75,0.00026286,2]
[422313807,1778814652000,-1521.08,0.00026373,2]
[422313808,1778814652000,-1307.46,0.00026373,2]
[422313809,1778814652000,-557.75,0.00026373,2]
[422313804,1778814652000,-1307.44,0.00026344,7]
[422313813,1778814652000,-200.0,0.0002639,7]
[422313811,1778814652000,-1521.94,0.00026373,2]
[422313816,1778814652000,-557.77,0.00026402,7]
[422313812,1778814652000,-1307.44,0.00026373,2]
[422313815,1778814652000,-27847.7521473,0.000264,2]
[422313814,1778814652000,-151.0,0.00026397,7]
[422313817,1778814652000,-641.99,0.00026402,7]
[422313819,1778814652000,-1307.46,0.00026402,7]
[422313818,1778814652000,-1521.08,0.00026402,7]
[422313820,1778814652000,-557.75,0.00026402,7]
[422313821,1778814652000,-642.08,0.00026402,7]
[422313824,1778814652000,-557.77,0.00026431,30]
[422313822,1778814652000,-1521.94,0.00026402,7]
[422313823,1778814652000,-1307.44,0.00026402,7]
[422313825,1778814652000,-641.99,0.00026431,2]
[422313805,1778814652000,-557.77,0.00026373,2]
[422313810,1778814652000,-642.08,0.00026373,2]
[422313784,1778814652000,-642.08,0.00026286,2]
[422313803,1778814652000,-1521.94,0.00026344,7]
[422313806,1778814652000,-641.99,0.00026373,2]
[422313785,1778814652000,-1521.94,0.00026286,2]
[422313780,1778814652000,-641.99,0.00026286,2]
[422313782,1778814652000,-1307.46,0.00026286,2]
[422313786,1778814652000,-1307.44,0.00026286,2]
[422313787,1778814652000,-2463.6,0.00026296,2]
[422313789,1778814652000,-557.77,0.00026315,7]
[422313790,1778814652000,-641.99,0.00026315,7]
[422313791,1778814652000,-1521.08,0.00026315,7]
[422313793,1778814652000,-557.75,0.00026315,7]
[422313788,1778814652000,-6445.64661898,0.000263,2]
[422313794,1778814652000,-642.08,0.00026315,7]
[422313796,1778814652000,-1307.44,0.00026315,7]
[422313795,1778814652000,-1521.94,0.00026315,7]
[422313801,1778814652000,-557.75,0.00026344,30]
[422313798,1778814652000,-641.99,0.00026344,7]
[422313797,1778814652000,-557.77,0.00026344,30]
[422313799,1778814652000,-1521.08,0.00026344,7]
[422313800,1778814652000,-1307.46,0.00026344,7]
[422313802,1778814652000,-642.08,0.00026344,7]
[422313792,1778814652000,-1307.46,0.00026315,7]
[422313856,1778814653000,-1521.08,0.00026517,7]
[422313851,1778814653000,-6445.64661898,0.000265,2]
[422313854,1778814653000,-557.77,0.00026517,30]
[422313852,1778814653000,-500.0,0.00026508,2]
[422313855,1778814653000,-641.99,0.00026517,7]
[422313850,1778814653000,-214.997284,0.000265,7]
[422313857,1778814653000,-1307.46,0.00026517,7]
[422313853,1778814653000,-162.38459575,0.00026508,2]
[422313860,1778814653000,-1521.94,0.00026517,7]
[422313869,1778814653000,-1307.44,0.00026546,2]
[422313859,1778814653000,-642.08,0.00026517,7]
[422313862,1778814653000,-557.77,0.00026546,2]
[422313863,1778814653000,-641.99,0.00026546,2]
[422313864,1778814653000,-1521.08,0.00026546,2]
[422313861,1778814653000,-1307.44,0.00026517,7]
[422313865,1778814653000,-1307.46,0.00026546,2]
[422313866,1778814653000,-557.75,0.00026546,2]
[422313868,1778814653000,-1521.94,0.00026546,2]
[422313848,1778814653000,-1521.94,0.00026488,7]
[422313858,1778814653000,-557.75,0.00026517,30]
[422313849,1778814653000,-1307.44,0.00026488,7]
[422313835,1778814653000,-1307.46,0.00026459,2]
[422313846,1778814653000,-557.75,0.00026488,7]
[422313872,1778814653000,-642.04,0.00026575,7]
[422313826,1778814653000,-1521.08,0.00026431,2]
[422313827,1778814653000,-1307.46,0.00026431,2]
[422313828,1778814653000,-557.75,0.00026431,30]
[422313830,1778814653000,-1521.94,0.00026431,2]
[422313837,1778814653000,-642.08,0.00026459,2]
[422313834,1778814653000,-1521.08,0.00026459,2]
[422313829,1778814653000,-642.08,0.00026431,2]
[422313832,1778814653000,-557.77,0.00026459,2]
[422313844,1778814653000,-1521.08,0.00026488,7]
[422313836,1778814653000,-557.75,0.00026459,2]
[422313833,1778814653000,-641.99,0.00026459,2]
[422313839,1778814653000,-1307.44,0.00026459,2]
[422313838,1778814653000,-1521.94,0.00026459,2]
[422313840,1778814653000,-151.0,0.00026488,2]
[422313841,1778814653000,-151.0,0.00026488,2]
[422313843,1778814653000,-641.99,0.00026488,7]
[422313847,1778814653000,-642.08,0.00026488,7]
[422313842,1778814653000,-557.77,0.00026488,7]
[422313845,1778814653000,-1307.46,0.00026488,7]
[422313831,1778814653000,-1307.44,0.00026431,2]
[422313873,1778814653000,-1521.09,0.00026575,7]
[422313867,1778814653000,-642.08,0.00026546,2]
[422313871,1778814653000,-557.81,0.00026575,7]
[422313898,1778814653000,-188.12728752,0.00027204,17]
[422313900,1778814653000,-354.72735544,0.000273,30]
[422313903,1778814653000,-1006.92,0.00027313,2]
[422313897,1778814653000,-160.78897578,0.00027123,20]
[422313902,1778814653000,-1006.92,0.000273,2]
[422313901,1778814653000,-6445.64661898,0.000273,2]
[422313904,1778814653000,-1006.92,0.00027327,2]
[422313905,1778814653000,-1006.92,0.0002734,2]
[422313906,1778814653000,-200.0,0.00027349,2]
[422313909,1778814653000,-1006.92,0.00027367,2]
[422313911,1778814653000,-14135.4768194,0.00027391,2]
[422313910,1778814653000,-1006.92,0.0002738,2]
[422313908,1778814653000,-1006.92,0.00027353,2]
[422313907,1778814653000,-297.0,0.00027349,2]
[422313912,1778814653000,-853.5565646,0.00027391,2]
[422313914,1778814653000,-1006.92,0.00027393,2]
[422313916,1778814653000,-253542.0627658,0.00027395,2]
[422313917,1778814653000,-150.0,0.00027396,2]
[422313915,1778814653000,-32785.3094835,0.00027395,2]
[422313870,1778814653000,-1307.52,0.00026575,7]
[422313918,1778814653000,-150.0,0.00027396,2]
[422313899,1778814653000,-354.72735546,0.000273,30]
[422313896,1778814653000,-150.38032802,0.00027111,2]
[422313913,1778814653000,-1370.1864453,0.00027391,2]
[422313894,1778814653000,-150.0,0.00027111,2]
[422313874,1778814653000,-1307.58,0.00026575,7]
[422313876,1778814653000,-642.25,0.00026575,7]
[422313893,1778814653000,-6445.64661898,0.000271,2]
[422313875,1778814653000,-557.78,0.00026575,7]
[422313877,1778814653000,-1522.01,0.00026575,7]
[422313878,1778814653000,-1307.45,0.00026575,7]
[422313882,1778814653000,-500.0,0.00026675,2]
[422313880,1778814653000,-152.0,0.00026615,6]
[422313883,1778814653000,-603.97432624,0.00026675,2]
[422313884,1778814653000,-500.0,0.00026775,2]
[422313879,1778814653000,-200.0,0.0002659,20]
[422313881,1778814653000,-2047.69306048,0.00026654,2]
[422313885,1778814653000,-202.81146805,0.0002679,20]
[422313889,1778814653000,-1550.0,0.00026894,2]
[422313887,1778814653000,-5025.03645926,0.00026846,2]
[422313892,1778814653000,-2571.710695,0.0002701,2]
[422313886,1778814653000,-6445.64661898,0.000268,2]
[422313888,1778814653000,-1772.71884531,0.00026894,2]
[422313890,1778814653000,-164.22177197,0.00026997,2]
[422313895,1778814653000,-150.0,0.00027111,2]
[422313891,1778814653000,-2000.0,0.00027,2]
[422313956,1778814654000,-422.251692,0.00027397,2]
[422313952,1778814654000,-300.0,0.00027397,2]
[422313951,1778814654000,-151.0,0.00027397,2]
[422313945,1778814654000,-1933.17065798,0.00027397,7]
[422313949,1778814654000,-151.0,0.00027397,2]
[422313948,1778814654000,-151.0,0.00027397,2]
[422313954,1778814654000,-151.0,0.00027397,2]
[422313950,1778814654000,-151.0,0.00027397,2]
[422313966,1778814654000,-422.251692,0.00027397,2]
[422313953,1778814654000,-1017.77,0.00027397,2]
[422313967,1778814654000,-422.251692,0.00027397,2]
[422313964,1778814654000,-422.251692,0.00027397,2]
[422313958,1778814654000,-422.251692,0.00027397,2]
[422313957,1778814654000,-422.251692,0.00027397,2]
[422313961,1778814654000,-422.251692,0.00027397,2]
[422313962,1778814654000,-422.251692,0.00027397,2]
[422313959,1778814654000,-422.251692,0.00027397,2]
[422313965,1778814654000,-422.251692,0.00027397,2]
[422313960,1778814654000,-422.251692,0.00027397,2]
[422313963,1778814654000,-422.251692,0.00027397,2]
[422313968,1778814654000,-612.11,0.00027397,20]
[422313976,1778814654000,-151.0,0.00027397,2]
[422313970,1778814654000,-151.0,0.00027397,2]
[422313946,1778814654000,-151.19263811,0.00027397,2]
[422313955,1778814654000,-154.088649,0.00027397,2]
[422313947,1778814654000,-526.48,0.00027397,2]
[422313924,1778814654000,-1367.88821403,0.00027397,30]
[422313937,1778814654000,-200.0,0.00027397,2]
[422313974,1778814654000,-151.0,0.00027397,2]
[422313919,1778814654000,-150.0,0.00027396,2]
[422313922,1778814654000,-228.46977722,0.00027396,2]
[422313921,1778814654000,-150.0,0.00027396,2]
[422313920,1778814654000,-150.0,0.00027396,2]
[422313926,1778814654000,-200.0,0.00027397,2]
[422313925,1778814654000,-165.0,0.00027397,2]
[422313927,1778814654000,-200.0,0.00027397,2]
[422313929,1778814654000,-500.0,0.00027397,2]
[422313923,1778814654000,-1758.71696466,0.00027397,2]
[422313928,1778814654000,-200.0,0.00027397,2]
[422313944,1778814654000,-2000.0,0.00027397,7]
[422313930,1778814654000,-500.0,0.00027397,2]
[422313931,1778814654000,-500.0,0.00027397,2]
[422313933,1778814654000,-500.0,0.00027397,2]
[422313941,1778814654000,-2000.0,0.00027397,7]
[422313939,1778814654000,-2000.0,0.00027397,7]
[422313940,1778814654000,-1010.3,0.00027397,2]
[422313942,1778814654000,-2000.0,0.00027397,7]
[422313943,1778814654000,-2000.0,0.00027397,7]
[422313935,1778814654000,-150.0,0.00027397,2]
[422313938,1778814654000,-1500.0,0.00027397,2]
[422313934,1778814654000,-501.6174179,0.00027397,2]
[422313936,1778814654000,-187.32,0.00027397,7]
[422313932,1778814654000,-500.0,0.00027397,2]
[422313975,1778814654000,-151.0,0.00027397,2]
[422314023,1778814654000,-150.0,0.0002761,2]
[422313978,1778814654000,-151.0,0.00027397,2]
[422314004,1778814654000,-2900.42,0.000274,14]
[422314002,1778814654000,-3581.84,0.000274,7]
[422314005,1778814654000,-172.92418375,0.000274,120]
[422314007,1778814654000,-5194.12,0.000274,2]
[422314010,1778814654000,-5194.12,0.000274,2]
[422314009,1778814654000,-5194.12,0.000274,2]
[422314011,1778814654000,-1006.92,0.00027407,2]
[422314008,1778814654000,-5194.12,0.000274,2]
[422314013,1778814654000,-1006.92,0.00027433,2]
[422314012,1778814654000,-1006.92,0.0002742,2]
[422314015,1778814654000,-1006.92,0.00027447,2]
[422314003,1778814654000,-2619.13,0.000274,7]
[422314017,1778814654000,-1006.92,0.00027473,2]
[422314019,1778814654000,-401.84,0.000275,2]
[422314016,1778814654000,-1006.92,0.0002746,2]
[422314021,1778814654000,-1006.92,0.000275,2]
[422314020,1778814654000,-204.04938408,0.000275,2]
[422314022,1778814654000,-500.0,0.00027578,14]
[422314024,1778814654000,-381.0,0.0002763,120]
[422314027,1778814654000,-187.0,0.00027647,120]
[422314026,1778814654000,-635.0,0.00027636,120]
[422314028,1778814654000,-11024.42,0.00027654,7]
[422314025,1778814654000,-267.0,0.0002763,120]